bitfinex-derivatives/quotes_ETHF0:USTF0_20241104
["timestamp","ask_amount","ask_price","bid_price","bid_amount"]
[1730743795884,45.34189,2422.1,2422.0,0.4131]
[1730743796288,41.21309,2422.1,2422.0,0.4131]
[1730743796496,40.8,2422.1,2422.0,0.4131]
[1730743796692,41.21309,2422.1,2422.0,0.4131]
[1730743797683,40.8,2422.1,2422.0,0.4131]
[1730743798482,40.8,2422.1,2422.0,4.5419]
[1730743798686,9.04848568,2422.7,2422.4,0.41302]
[1730743798687,0.41303,2422.5,2422.4,0.41302]
[1730743799196,41.21303,2422.5,2422.4,0.41302]
[1730743799588,41.21302,2422.5,2422.4,0.41302]
[1730743800492,40.8,2422.5,2422.4,0.41302]
[1730743800893,2.94028538,2422.7,2422.6,0.413]
[1730743801093,2.94028538,2422.7,2422.6,3.6208]
[1730743801399,2.94028538,2422.7,2422.6,7.7488]
[1730743801695,2.11288538,2422.7,2422.6,7.7488]
[1730743801891,7.10649983,2422.8,2422.7,0.41298]
[1730743802095,5.59749983,2422.8,2422.7,7.4413803]
[1730743802489,5.59749983,2422.8,2422.7,8.51524854]
[1730743803396,4.70180983,2422.8,2422.7,8.51444854]
[1730743803992,3.69558983,2422.8,2422.7,8.51444854]
[1730743804189,2.67094983,2422.8,2422.7,8.51444854]
[1730743804390,2.67094983,2422.8,2422.7,7.4405803]
[1730743804795,1.38759983,2422.8,2422.7,7.62497601]
[1730743804992,0.12539983,2422.8,2422.7,7.62497601]
[1730743805302,9.83e-06,2422.8,2422.7,9.23730313]
[1730743805497,40.8,2423.4,2423.3,0.41288]
[1730743808895,40.8,2423.4,2423.3,10.6474803]
[1730743809101,0.5279,2424.1,2423.3,10.6474803]
[1730743809102,0.41279,2423.9,2423.5,0.41285]
[1730743809400,0.4128,2423.8,2423.7,3.62061]
[1730743809593,41.2128,2423.8,2423.7,3.62061]
[1730743809792,41.2128,2423.8,2423.7,3.2078]
[1730743810198,41.2128,2423.8,2423.7,3.62061]
[1730743810501,41.2128,2423.8,2423.7,3.2078]
[1730743810696,41.2128,2423.8,2423.7,3.62061]
[1730743810893,41.2128,2423.8,2423.7,3.2078]
[1730743811402,41.2128,2423.8,2423.7,2.3807]
[1730743811895,45.3384,2423.8,2423.7,2.3807]
[1730743813099,45.3384,2423.8,2423.7,0.41281]
[1730743813402,45.3384,2423.8,2423.7,3.2078]
[1730743814006,45.3384,2423.8,2423.7,3.62061]
[1730743814405,45.3384,2423.8,2423.7,3.2078]
[1730743814598,45.3384,2423.8,2423.7,3.62061]
[1730743815098,45.3384,2423.8,2423.7,3.2078]
[1730743815298,45.3384,2423.8,2423.7,3.62061]
[1730743815503,45.3384,2423.8,2423.7,3.2078]
[1730743816305,0.41287,2423.5,2423.4,0.41285]
[1730743816496,1.03209,2423.6,2422.8,1.07282712]
[1730743816697,0.41295,2423.0,2422.9,0.41294]
[1730743817105,41.21295,2423.0,2422.9,0.41294]
[1730743817604,41.21295,2423.0,2422.7,3.2078]
[1730743817605,40.8,2423.0,2422.7,3.2078]
[1730743817814,1.5297,2422.9,2422.8,0.41295]
[1730743818109,1.0219,2422.9,2422.8,0.41295]
[1730743818305,40.8,2423.0,2422.9,0.41295]
[1730743818504,40.8,2423.0,2422.9,4.54015]
[1730743818703,0.5193,2423.6,2422.9,5.20002712]
[1730743819005,0.5193,2423.6,2423.5,0.41285]
[1730743819712,41.3193,2423.6,2423.5,0.41285]
[1730743820306,41.3193,2423.6,2423.3,1.557]
[1730743820508,0.41285,2423.5,2423.4,0.41285]
[1730743820699,0.41287,2423.4,2423.3,0.41287]
[1730743821098,41.8175,2423.6,2423.2,1.557]
[1730743821303,3.2078,2423.4,2422.7,6.87008712]
[1730743821502,0.41293,2423.1,2423.0,0.41293]
[1730743821710,0.41291,2423.2,2423.1,0.41291]
[1730743824717,0.93709,2423.3,2423.2,0.4129]
[1730743824919,0.5242,2423.3,2423.2,0.4129]
[1730743825210,0.93708,2423.3,2423.2,0.4129]
[1730743825906,0.5242,2423.3,2423.2,0.4129]
[1730743826709,0.5242,2423.3,2423.2,4.5393]
[1730743826905,0.5242,2423.3,2423.2,3.3133003]
[1730743827109,0.5242,2423.3,2423.2,0.4129]
[1730743828601,0.5242,2423.3,2423.2,4.5393]
[1730743828806,0.5242,2423.3,2423.2,0.4129]
[1730743831216,5.68282,2423.3,2422.7,4.28062712]
[1730743831409,0.4129,2423.2,2423.1,0.41291]
[1730743831610,0.41293,2423.1,2423.0,0.41293]
[1730743832414,0.5242,2423.3,2422.9,0.41294]
[1730743832415,0.41294,2423.0,2422.9,0.41294]
[1730743832614,0.41293,2423.1,2423.0,0.41292]
[1730743833420,0.5242,2423.3,2422.8,2.9004003]
[1730743833622,0.5242,2423.3,2422.8,3.9328203]
[1730743833923,0.41291,2423.2,2423.1,0.41291]
[1730743834416,0.5242,2423.3,2423.2,0.4129]
[1730743834922,3.2078,2423.4,2423.1,2.9004003]
[1730743834923,3.2078,2423.4,2423.3,0.41288]
[1730743835313,3.62067,2423.4,2423.3,0.41288]
[1730743835523,3.2078,2423.4,2423.3,0.41288]
[1730743835711,3.2078,2423.4,2423.3,3.3132803]
[1730743836119,3.2078,2423.4,2423.3,7.4396803]
[1730743838117,41.73214,2423.6,2423.5,0.41285]
[1730743838118,40.8,2423.6,2423.5,0.41285]
[1730743838520,3.734,2423.8,2423.7,0.41281]
[1730743838521,3.2078,2423.8,2423.7,0.41281]
[1730743839015,44.0078,2423.8,2423.7,0.41281]
[1730743840618,3.7288,2424.1,2424.0,0.41276]
[1730743840819,4.14155,2424.1,2424.0,0.41276]
[1730743841219,44.94155,2424.1,2424.0,0.41276]
[1730743841419,44.5288,2424.1,2423.6,1.07282712]
[1730743841718,0.41282,2423.7,2423.6,0.41282]
[1730743841919,0.41281,2423.8,2423.7,0.41281]
[1730743842119,0.41278,2423.9,2423.7,0.41281]
[1730743842315,2.10512,2424.0,2423.6,0.41283]
[1730743842524,0.41281,2423.8,2423.5,1.07282712]
[1730743842720,1.0732,2424.0,2423.6,2.9004003]
[1730743843027,1.48597,2424.0,2423.9,0.41278]
[1730743843428,1.0732,2424.0,2423.9,0.41278]
[1730743843937,1.48596,2424.0,2423.9,0.41278]
[1730743844727,1.0732,2424.0,2423.9,0.41278]
[1730743844924,1.48596,2424.0,2423.9,0.41278]
[1730743845421,1.48596,2424.0,2423.9,0.94046354]
[1730743845623,1.0732,2424.0,2423.9,0.94046354]
[1730743845832,1.48596,2424.0,2423.9,0.94046354]
[1730743846331,1.0732,2424.0,2423.9,0.94046354]
[1730743846630,0.5346,2424.0,2423.9,0.94046354]
[1730743847130,0.5346,2424.0,2423.9,0.41278]
[1730743847333,0.5346,2424.0,2423.9,0.94027632]
[1730743847635,0.5346,2424.0,2423.9,0.41278]
[1730743848239,0.41278,2423.9,2423.8,1.48561712]
[1730743848431,0.5515,2423.9,2423.8,0.94032242]
[1730743848631,1.03126804,2424.2,2423.8,7.55349175]
[1730743848826,1.03126804,2424.2,2424.1,3.3131503]
[1730743849032,1.03126804,2424.2,2424.1,7.96529093]
[1730743849226,1.0693,2424.8,2424.7,0.41264]
[1730743849431,1.0693,2424.8,2424.7,3.3130403]
[1730743849628,40.8,2424.9,2424.8,0.41263]
[1730743850535,1.48184,2425.3,2425.2,0.41256]
[1730743850736,1.48184,2425.3,2424.9,3.9319203]
[1730743851132,1.48184,2425.3,2425.1,0.41258]
[1730743851133,40.8,2425.2,2425.1,0.41258]
[1730743853336,40.8,2425.2,2425.1,3.62038]
[1730743853537,40.8,2425.2,2425.1,7.74358]
[1730743853741,3.2078,2425.7,2425.1,7.74358]
[1730743853742,1.0264,2425.6,2425.1,8.36244]
[1730743853949,1.0264,2425.6,2425.3,2.9004003]
[1730743853950,1.4389,2425.6,2425.3,2.9004003]
[1730743854244,41.21251,2425.5,2425.4,0.41252]
[1730743854741,40.8,2425.5,2425.4,4.53572]
[1730743854947,1.5046,2425.9,2425.4,7.331]
[1730743855242,1.5046,2425.9,2425.8,0.41246]
[1730743855441,42.3046,2425.9,2425.8,0.41246]
[1730743856335,41.8264,2425.9,2425.8,0.41246]
[1730743857036,0.481,2426.3,2426.2,0.41239]
[1730743857239,0.4749,2426.3,2426.2,3.3127903]
[1730743857446,0.481,2426.8,2426.5,0.41234]
[1730743857747,41.83024808,2426.6,2426.5,0.41234]
[1730743858047,1.03024808,2426.6,2426.5,0.41234]
[1730743858235,1.03024808,2426.6,2426.4,6.5205403]
[1730743858641,1.03024808,2426.6,2426.5,0.41234]
[1730743858846,1.03024808,2426.6,2426.2,2.9004003]
[1730743859042,1.03024808,2426.6,2426.2,3.2078]
[1730743859241,1.50444808,2426.6,2426.2,2.9004003]
[1730743859544,0.41237,2426.3,2426.2,2.9004003]
[1730743860233,0.4124,2426.2,2426.0,2.9004003]
[1730743860436,0.8741,2426.2,2426.0,0.41242]
[1730743860641,0.8741,2426.2,2425.9,1.96743]
[1730743860847,0.4742,2426.1,2426.0,0.41242]
[1730743861242,0.4742,2426.1,2426.0,3.3128203]
[1730743861439,0.4742,2426.1,2425.9,5.1193901]
[1730743861745,0.4742,2426.1,2425.9,5.5318201]
[1730743861942,0.4742,2426.1,2426.0,0.41242]
[1730743862934,0.4742,2426.1,2425.9,5.1193901]
[1730743863134,0.4742,2426.1,2425.9,5.5318201]
[1730743863746,0.4742,2426.1,2425.7,3.5643901]
[1730743863949,0.4742,2426.1,2425.6,4.7618]
[1730743863950,0.41245,2425.9,2425.6,4.7618]
[1730743864141,0.41245,2425.9,2425.6,5.17428]
[1730743864652,40.8,2425.8,2425.4,3.9769101]
[1730743864942,0.41251,2425.5,2425.4,1.554]
[1730743865141,3.2078,2425.6,2425.0,4.7618]
[1730743865340,0.9401,2425.4,2425.0,5.17439]
[1730743865546,0.41255,2425.3,2425.0,5.17438]
[1730743865744,0.41257,2425.2,2425.0,4.7618]
[1730743865944,0.4624,2425.1,2425.0,5.17439]
[1730743866154,0.41257,2425.2,2425.0,5.17439]
[1730743867049,0.41256,2425.3,2425.0,4.7618]
[1730743867249,0.41257,2425.2,2425.0,5.17439]
[1730743867747,1.35263,2425.4,2425.2,0.41255]
[1730743867950,0.41257,2425.2,2425.0,3.62039]
[1730743868841,0.9401,2425.4,2425.0,3.2078]
[1730743869040,0.41257,2425.2,2425.0,3.62039]
[1730743869337,0.468,2425.1,2425.0,3.2078]
[1730743869645,0.468,2425.1,2425.0,3.62039]
[1730743872243,1.35263,2425.4,2425.2,0.41255]
[1730743872437,0.9401,2425.4,2425.0,3.2078]
[1730743872750,0.455,2425.4,2425.3,0.41254]
[1730743873550,0.41255,2425.3,2425.1,0.41257]
[1730743873943,0.41255,2425.3,2425.0,3.2078]
[1730743874143,0.41255,2425.3,2425.2,0.41256]
[1730743874338,0.41255,2425.3,2425.0,3.2078]
[1730743874339,0.41255,2425.3,2425.1,0.41257]
[1730743874543,0.455,2425.4,2425.0,3.2078]
[1730743874751,0.454,2425.2,2425.0,3.2078]
[1730743874953,0.454,2425.2,2425.1,0.41258]
[1730743876353,0.86656,2425.2,2425.0,3.2078]
[1730743876543,0.86656,2425.2,2425.0,3.62038]
[1730743876749,0.86656,2425.2,2425.1,0.41258]
[1730743877657,0.454,2425.2,2425.1,0.41258]
[1730743878955,0.454,2425.2,2424.9,7.2651901]
[1730743879252,0.86657,2425.2,2425.1,0.41258]
[1730743879454,0.454,2425.2,2425.1,0.41258]
[1730743880354,0.86656,2425.2,2425.1,0.41258]
[1730743880552,0.454,2425.2,2425.1,0.41258]
[1730743881057,0.86656,2425.2,2425.1,0.41258]
[1730743881259,0.454,2425.2,2425.1,0.41258]
[1730743881455,0.86656,2425.2,2425.1,0.41258]
[1730743882258,0.454,2425.2,2425.1,0.41258]
[1730743882656,0.41255,2425.3,2425.2,0.41255]
[1730743883358,0.41254,2425.3,2425.2,0.41255]
[1730743883658,0.9462,2425.4,2425.1,2.89744091]
[1730743883854,0.455,2425.4,2425.3,0.41254]
[1730743884259,0.4125,2425.6,2425.5,0.41249]
[1730743884762,1.5004,2425.7,2425.6,0.41249]
[1730743885454,1.91287,2425.7,2425.6,0.41249]
[1730743885848,1.5004,2425.7,2425.6,0.41249]
[1730743886052,1.91287,2425.7,2425.6,0.41249]
[1730743886252,40.8,2425.8,2425.4,4.40706091]
[1730743886253,41.21247,2425.8,2425.4,4.40706091]
[1730743886452,41.21247,2425.8,2425.7,0.41247]
[1730743886654,40.8,2425.8,2425.7,0.41247]
[1730743886854,0.9356,2426.1,2425.7,7.3302]
[1730743887058,0.505,2426.2,2426.1,0.41241]
[1730743887558,41.305,2426.2,2426.1,0.41241]
[1730743888155,41.71739,2426.2,2426.1,0.41241]
[1730743888358,41.21239,2426.2,2426.1,0.41241]
[1730743888875,40.8,2426.2,2426.1,0.41241]
[1730743890366,41.21239,2426.2,2426.1,0.41241]
[1730743890865,41.21239,2426.2,2426.0,0.4985]
[1730743890866,0.41241,2426.1,2426.0,0.91091]
[1730743891963,0.41241,2426.1,2426.0,0.41241]
[1730743893465,41.21241,2426.1,2426.0,0.41241]
[1730743893866,40.8,2426.1,2426.0,0.41241]
[1730743894063,41.21241,2426.1,2426.0,0.41241]
[1730743894262,40.8,2426.1,2426.0,0.41241]
[1730743894469,41.21241,2426.1,2426.0,0.41241]
[1730743897668,0.41244,2426.0,2425.9,0.41243]
[1730743898672,40.8,2426.1,2426.0,0.41242]
[1730743903367,40.8,2426.1,2426.0,3.62022]
[1730743903774,1.4406,2426.4,2426.0,3.62022]
[1730743903974,1.4406,2426.4,2426.3,0.41237]
[1730743904269,42.2406,2426.4,2426.3,0.41237]
[1730743904475,42.65295,2426.4,2426.3,0.41237]
[1730743906271,42.65295,2426.4,2425.8,2.10823989]
[1730743906272,49.57,2426.4,2425.8,2.10823989]
[1730743906475,46.4793,2426.4,2425.7,7.34067989]
[1730743906771,46.4793,2426.4,2425.9,0.41242]
[1730743906772,0.41244,2426.0,2425.9,0.41242]
[1730743907473,1.03097,2426.3,2425.7,4.70958]
[1730743907673,0.41242,2426.1,2426.0,0.4124]
[1730743909173,0.41242,2426.1,2425.8,1.03115]
[1730743909174,0.41245,2425.9,2425.8,0.41243]
[1730743909771,0.41245,2426.0,2425.9,0.41243]
[1730743910280,3.62021,2426.1,2426.0,0.41242]
[1730743910481,0.41241,2426.1,2426.0,0.41242]
[1730743911571,4.1216,2426.1,2425.7,1.03119]
[1730743911867,3.2078,2426.0,2425.5,3.2078]
[1730743912071,3.2078,2426.0,2425.6,0.41248]
[1730743912072,0.41249,2425.7,2425.6,0.41248]
[1730743913281,0.41251,2425.6,2425.5,0.41249]
[1730743914374,4.1224,2425.6,2425.2,6.10524091]
[1730743914580,0.41254,2425.4,2425.3,0.41252]
[1730743915182,0.41254,2425.4,2425.2,6.10524091]
[1730743915183,0.41252,2425.5,2425.4,0.41251]
[1730743919585,0.41248,2425.8,2425.7,0.41246]
[1730743920283,1.4306,2425.9,2425.4,3.92875091]
[1730743920484,0.4125,2425.7,2425.6,0.41248]
[1730743920779,0.41254,2425.3,2425.2,1.07709989]
[1730743920980,0.41256,2425.2,2425.1,3.04065989]
[1730743921185,1.91146,2425.2,2425.1,2.51439281]
[1730743921380,42.71146,2425.2,2425.1,2.51439281]
[1730743921692,41.8005,2425.2,2425.1,2.51439281]
[1730743921986,42.21306,2425.2,2425.1,2.51439281]
[1730743922784,42.21306,2425.2,2425.1,1.96356]
[1730743922991,45.9237,2425.2,2424.9,1.07709989]
[1730743923287,0.41259,2425.0,2424.9,0.4126]
[1730743923490,0.41259,2425.0,2424.9,0.95677618]
[1730743923681,0.41259,2425.1,2425.0,0.41258]
[1730743923886,42.21306,2425.2,2425.1,0.41258]
[1730743924179,41.8005,2425.2,2425.1,0.41258]
[1730743924383,41.8005,2425.2,2425.1,0.91078]
[1730743924781,42.21306,2425.2,2425.1,0.41258]
[1730743925090,40.8,2425.2,2425.1,0.41258]
[1730743925276,40.8,2425.2,2425.1,0.95672474]
[1730743925481,0.91093,2425.4,2425.1,4.16452474]
[1730743925678,3.2078,2425.6,2425.4,0.41251]
[1730743925679,0.41252,2425.5,2425.4,0.41251]
[1730743925981,41.21252,2425.5,2425.4,0.41251]
[1730743926189,40.8,2425.5,2425.4,3.30995091]
[1730743926379,0.41251,2425.6,2425.5,0.41249]
[1730743926593,0.4644,2425.7,2425.6,0.41249]
[1730743926594,0.8769,2425.7,2425.6,0.41249]
[1730743926784,41.6769,2425.7,2425.6,0.41249]
[1730743927686,41.67687,2425.7,2425.6,0.41249]
[1730743927990,41.2644,2425.7,2425.6,0.41249]
[1730743928486,0.9619,2425.8,2425.7,0.41247]
[1730743928692,0.4854,2425.8,2425.7,0.41247]
[1730743929279,0.4854,2425.8,2425.7,0.95647514]
[1730743929487,0.4854,2425.8,2425.7,0.95649035]
[1730743930890,44.0078,2425.9,2425.8,0.41246]
[1730743931283,44.0078,2425.9,2425.8,0.95653433]
[1730743931483,44.42024,2425.9,2425.8,0.41246]
[1730743931886,44.0078,2425.9,2425.8,0.41246]
[1730743932292,44.42024,2425.9,2425.8,0.95652507]
[1730743932590,44.42024,2425.9,2425.8,0.41246]
[1730743932791,44.0078,2425.9,2425.8,0.41246]
[1730743933088,44.42024,2425.9,2425.8,0.41246]
[1730743934382,0.41247,2425.8,2425.7,0.41246]
[1730743934587,0.41247,2425.8,2425.7,0.9566173]
[1730743934789,44.42025,2425.9,2425.8,0.41246]
[1730743935595,40.8,2425.9,2425.8,0.41246]
[1730743935889,40.8,2425.9,2425.8,0.95665007]
[1730743936091,0.4965,2426.1,2426.0,0.41242]
[1730743936489,41.2965,2426.1,2426.0,0.95651116]
[1730743936689,41.2965,2426.1,2426.0,1.44541116]
[1730743937988,40.8,2426.1,2426.0,1.44541116]
[1730743938189,40.8,2426.1,2426.0,2.52251105]
[1730743939186,40.8,2426.1,2426.0,1.44541116]
[1730743939988,40.8,2426.1,2426.0,1.97841989]
[1730743940199,40.8,2426.1,2426.0,1.44532791]
[1730743941191,40.8,2426.1,2426.0,2.5224278]
[1730743941893,40.8,2426.1,2426.0,1.44532791]
[1730743942093,3.2078,2426.4,2426.3,0.41237]
[1730743942499,1.4366,2426.5,2426.4,0.41235]
[1730743942995,42.2366,2426.5,2426.4,0.41235]
[1730743943295,40.8,2426.5,2426.4,7.43139091]
[1730743943488,40.8,2426.5,2426.4,11.18273539]
[1730743943687,40.8,2426.5,2426.4,7.97493539]
[1730743943892,40.8,2426.5,2426.4,3.85333539]
[1730743944095,40.8,2426.5,2426.4,3.30979091]
[1730743944492,40.8,2426.5,2426.4,6.51759091]
[1730743946299,40.8,2426.5,2426.4,3.30979091]
[1730743946499,40.8,2426.5,2426.4,6.51759091]
[1730743946800,40.8,2426.5,2426.4,3.30979091]
[1730743947098,40.8,2426.5,2426.4,3.62015]
[1730743949897,40.8,2426.5,2426.4,10.63919091]
[1730743950096,1.03024808,2426.6,2426.4,10.22684091]
[1730743950400,1.03024808,2426.6,2426.5,0.41234]
[1730743950590,41.83024808,2426.6,2426.5,0.41234]
[1730743950793,41.83024808,2426.6,2426.5,0.90174]
[1730743953400,0.41234,2426.5,2426.4,3.62014]
[1730743953600,1.44004,2426.5,2426.4,0.41234]
[1730743954606,1.0277,2426.5,2426.4,0.41234]
[1730743955400,1.44004,2426.5,2426.4,0.41234]
[1730743957009,1.44004,2426.5,2426.2,2.57898]
[1730743957010,1.0277,2426.5,2426.2,1.548]
[1730743957200,1.44005,2426.5,2426.4,0.41235]
[1730743957401,1.0277,2426.5,2426.4,3.30979091]
[1730743962700,1.44004,2426.5,2426.4,0.41235]
[1730743962901,0.41235,2426.4,2426.3,3.2078]
[1730743964102,4.53395,2426.4,2426.3,3.2078]
[1730743964305,4.1216,2426.4,2426.2,0.41239]
[1730743964604,0.41241,2426.1,2426.0,6.51765091]
[1730743964805,0.41241,2426.1,2426.0,3.62021]
[1730743965704,2.05857,2426.5,2426.0,6.10524091]
[1730743965899,0.41239,2426.3,2426.2,0.41237]
[1730743966103,1.0277,2426.5,2426.3,0.41235]
[1730743966104,0.41237,2426.4,2426.3,0.41235]
[1730743966608,4.53397,2426.4,2426.3,0.41235]
[1730743967017,0.41237,2426.4,2426.3,0.41235]
[1730743967512,0.41242,2426.2,2426.1,0.41239]
[1730743967904,4.53402,2426.2,2426.1,0.41239]
[1730743968112,4.1216,2426.2,2426.1,0.41239]
[1730743968606,5.05709,2426.2,2426.1,0.41239]
[1730743968807,0.5231,2426.2,2426.1,0.41239]
[1730743969012,0.5231,2426.2,2426.1,3.30983091]
[1730743970310,0.5231,2426.2,2426.1,3.85096343]
[1730743970516,0.5231,2426.2,2426.1,6.51763091]
[1730743971011,0.5231,2426.2,2426.1,0.41239]
[1730743971216,0.93549,2426.2,2426.1,0.95379074]
[1730743971413,0.5231,2426.2,2426.1,0.41239]
[1730743971616,0.5231,2426.2,2426.1,0.95380968]
[1730743971915,0.5231,2426.2,2426.1,3.30983091]
[1730743972108,0.5231,2426.2,2426.1,3.8512326]
[1730743972612,0.5231,2426.2,2426.1,3.30983091]
[1730743972811,0.5231,2426.2,2426.1,3.85136513]
[1730743973210,0.5231,2426.2,2426.1,0.95392422]
[1730743973420,0.93549,2426.2,2426.1,0.95392422]
[1730743973804,0.5231,2426.2,2426.1,0.95392422]
[1730743974317,0.93549,2426.2,2426.1,0.95392422]
[1730743975014,0.5231,2426.2,2426.1,0.95392422]
[1730743975213,0.93549,2426.2,2426.1,0.95392422]
[1730743976117,0.93549,2426.2,2426.1,0.41239]
[1730743976313,0.93549,2426.2,2426.1,0.95447013]
[1730743978214,4.14329,2426.2,2426.1,0.95447013]
[1730743980611,4.14329,2426.2,2426.1,0.54208013]
[1730743980920,8.26489,2426.2,2426.1,0.54208013]
[1730743981112,8.26489,2426.2,2426.1,0.95449013]
[1730743981317,4.14329,2426.2,2426.1,0.95449013]
[1730743982017,3.7309,2426.2,2426.1,0.95449013]
[1730743982216,0.93549,2426.2,2426.1,3.85193104]
[1730743982419,0.93549,2426.2,2426.1,4.92903093]
[1730743983022,0.5231,2426.2,2426.1,4.92903093]
[1730743983319,3.6993,2426.5,2426.4,0.41235]
[1730743983516,0.4915,2426.5,2426.4,5.79893981]
[1730743983716,1.03024808,2426.6,2426.5,0.41234]
[1730743983924,1.03024808,2426.6,2426.5,3.69219301]
[1730743984219,1.03024808,2426.6,2426.5,7.81299301]
[1730743984618,1.03024808,2426.6,2426.5,9.9669599]
[1730743985218,1.03024808,2426.6,2426.5,12.71539719]
[1730743985511,1.03024808,2426.6,2426.5,9.9669599]
[1730743985715,1.03024808,2426.6,2426.5,8.55710269]
[1730743985916,1.03024808,2426.6,2426.5,9.96607092]
[1730743986517,1.03024808,2426.6,2426.5,7.81210403]
[1730743987223,1.03024808,2426.6,2426.5,7.31080403]
[1730743987423,1.03024808,2426.6,2426.5,7.31045673]
[1730743988428,1.03024808,2426.6,2426.5,9.46442362]
[1730743988726,1.03024808,2426.6,2426.5,12.21076928]
[1730743989115,1.03024808,2426.6,2426.5,9.46442362]
[1730743989528,0.58174808,2426.6,2426.5,12.21013314]
[1730743990331,0.58174808,2426.6,2426.5,12.40005532]
[1730743991024,0.58174808,2426.6,2426.5,9.6543458]
[1730743991231,0.58174808,2426.6,2426.5,7.31045673]
[1730743991632,0.58174808,2426.6,2426.5,9.46442362]
[1730743992017,0.58174808,2426.6,2426.5,7.31045673]
[1730743992721,0.58174808,2426.6,2426.5,6.3490385]
[1730743992919,0.58174808,2426.6,2426.5,4.94041757]
[1730743993118,0.58174808,2426.6,2426.5,4.80381594]
[1730743993328,0.58174808,2426.6,2426.5,7.3092008]
[1730743993533,0.58174808,2426.6,2426.5,7.312535]
[1730743993927,0.58174808,2426.6,2426.5,7.825535]
[1730743994735,41.3342,2427.0,2426.5,9.56716189]
[1730743994935,40.8,2427.0,2426.9,7.59393223]
[1730743995137,40.8,2427.0,2426.9,8.13523929]
[1730743996626,40.8,2427.0,2426.9,8.13469711]
[1730743996838,1.03003584,2427.1,2426.9,8.13469711]
[1730743996839,1.03003584,2427.1,2427.0,0.41225]
[1730743997033,1.03003584,2427.1,2427.0,0.95301488]
[1730743997222,41.83003584,2427.1,2427.0,0.95301488]
[1730743998232,41.83003584,2427.1,2427.0,0.95296224]
[1730743998625,41.83003584,2427.1,2427.0,2.02938356]
[1730743998830,1.03003584,2427.1,2427.0,2.02938356]
[1730743999030,1.03003584,2427.1,2427.0,6.14938356]
[1730743999824,1.03003584,2427.1,2427.0,2.02938356]
[1730744000030,2.09603584,2427.1,2427.0,0.95296224]
[1730744000435,42.89603584,2427.1,2427.0,0.95296224]
[1730744000838,42.89603584,2427.1,2427.0,0.41225]
[1730744001225,2.09603584,2427.1,2427.0,0.41225]
[1730744005640,42.89603584,2427.1,2427.0,0.41225]
[1730744005839,2.09603584,2427.1,2427.0,0.41225]
[1730744006046,1.57163584,2427.1,2427.0,0.41225]
[1730744007847,1.98387584,2427.1,2427.0,0.41225]
[1730744008039,1.57163584,2427.1,2427.0,0.41225]
[1730744008441,42.37163584,2427.1,2427.0,0.41225]
[1730744008635,42.37163584,2427.1,2427.0,4.53225]
[1730744008636,1.03003584,2427.1,2427.0,4.53225]
[1730744009238,1.03003584,2427.1,2427.0,0.41225]
[1730744012244,1.44227584,2427.1,2427.0,0.41225]
[1730744012750,0.41225,2427.0,2426.9,3.30970091]
[1730744012950,0.92435,2427.0,2426.9,3.30970091]
[1730744013447,0.5121,2427.0,2426.9,3.30970091]
[1730744016458,0.41227,2426.9,2426.8,0.41228]
[1730744016762,1.0265,2426.9,2426.7,2.89744091]
[1730744016962,0.4123,2426.7,2426.6,3.62012]
[1730744017359,0.4123,2426.7,2426.4,1.95035]
[1730744017360,0.41234,2426.5,2426.4,1.95035]
[1730744017757,0.91863,2426.6,2426.5,0.41234]
[1730744017953,0.91863,2426.6,2426.4,1.538]
[1730744018162,0.5063,2426.6,2426.4,0.7073]
[1730744018361,5.15166,2426.5,2426.1,1.48882132]
[1730744018657,5.15166,2426.5,2426.0,2.89744091]
[1730744018658,4.2387,2426.4,2426.0,0.41241]
[1730744018860,3.2078,2426.4,2425.8,7.18166223]
[1730744019054,0.41243,2426.0,2425.9,0.41243]
[1730744019454,41.21243,2426.0,2425.9,0.41243]
[1730744019756,40.8,2426.0,2425.9,0.41243]
[1730744020257,44.9224,2426.0,2425.8,2.89744091]
[1730744020460,40.8,2426.0,2425.9,0.41244]
[1730744020663,41.21242,2426.0,2425.9,0.41244]
[1730744020967,41.21242,2426.0,2425.8,0.41244]
[1730744020968,0.41244,2425.9,2425.8,0.41244]
[1730744021361,0.41244,2425.9,2425.6,4.43644091]
[1730744021362,0.5484,2425.9,2425.6,4.43644091]
[1730744021562,0.41247,2425.8,2425.7,0.41246]
[1730744022263,0.96085,2425.9,2425.8,0.41246]
[1730744022759,5.08325,2425.9,2425.8,0.41246]
[1730744022963,4.6708,2425.9,2425.8,0.41246]
[1730744023165,5.08324,2425.9,2425.8,0.41246]
[1730744023561,0.5484,2425.9,2425.8,3.30990091]
[1730744023762,44.0078,2426.0,2425.9,0.41244]
[1730744024466,40.8,2426.0,2425.9,0.41244]
[1730744024660,0.41241,2426.1,2426.0,0.41242]
[1730744025060,41.21241,2426.1,2426.0,0.41242]
[1730744025363,0.41244,2426.0,2425.9,0.41243]
[1730744025767,0.41245,2425.9,2425.8,0.41244]
[1730744026156,40.8,2426.1,2425.6,5.46766091]
[1730744026366,0.41243,2426.0,2425.9,0.41243]
[1730744026761,40.8,2426.1,2425.8,2.89744091]
[1730744026762,0.41244,2425.9,2425.8,3.30988091]
[1730744027070,0.41243,2426.0,2425.9,0.41242]
[1730744028260,41.21241,2426.1,2426.0,0.41242]
[1730744028964,0.41241,2426.1,2426.0,0.41242]
[1730744029969,0.5243,2426.2,2426.1,0.41241]
[1730744029970,0.93669,2426.2,2426.1,0.41241]
[1730744030160,41.73669,2426.2,2426.1,0.41241]
[1730744031669,45.85829,2426.2,2426.1,0.41241]
[1730744031868,42.25429,2426.2,2426.1,0.41241]
[1730744032076,1.0419,2426.2,2426.1,0.41241]
[1730744032573,0.93669,2426.2,2426.1,0.41241]
[1730744033162,0.5243,2426.2,2426.1,0.41241]